fUST/lending_fUST_20251218
["ID","MTS","AMOUNT","RATE_DAILY","PERIOD"]
[398961016,1766023867454,-502.16647375,0.00045479,120]
[398961017,1766023867463,-169.28,0.00045753,120]
[398961018,1766023867474,-1341.12,0.00045753,120]
[398961019,1766023867483,-500.0,0.00045753,120]
[398961020,1766023867492,-680.25,0.00045753,120]
[398961021,1766023867502,-500.0,0.00045753,120]
[398961022,1766023867511,-500.0,0.00045753,120]
[398961023,1766023867520,-500.0,0.00045753,120]
[398961024,1766023867531,-868.74,0.00045753,3]
[398961025,1766023867541,-2080.09,0.00045753,120]
[398961026,1766023867550,-500.0,0.00045753,120]
[398961027,1766023867559,-835.86,0.00045753,120]
[398961028,1766023867569,-778.67,0.00045753,120]
[398961029,1766023867579,-3505.63,0.00045753,120]
[398961030,1766023867588,-2332.19,0.00045753,120]
[398961031,1766023867598,-500.0,0.00045753,120]
[398961032,1766023867608,-693.04,0.00045753,120]
[398961033,1766023867619,-1007.7,0.00045753,60]
[398961034,1766023867629,-917.68,0.00045753,120]
[398961035,1766023867639,-536.79,0.00045753,120]
[398961036,1766023867649,-1341.12,0.00046027,120]
[398961037,1766023867661,-500.0,0.00046027,120]
[398961038,1766023867684,-680.25,0.00046027,120]
[398961039,1766023867697,-165.34871873,0.00046027,120]
[398961040,1766023867706,-500.0,0.00046027,120]
[398961041,1766023867715,-500.0,0.00046027,120]
[398961042,1766023867725,-868.74,0.00046027,3]
[398961043,1766023867735,-2080.09,0.00046027,120]
[398961044,1766023867744,-500.0,0.00046027,120]
[398961045,1766023867753,-835.86,0.00046027,120]
[398961046,1766023867763,-778.67,0.00046027,120]
[398961047,1766023867771,-3505.63,0.00046027,120]
[398961048,1766023867781,-2332.19,0.00046027,120]
[398961049,1766023867791,-500.0,0.00046027,120]
[398961050,1766023867800,-693.04,0.00046027,120]
[398961051,1766023867810,-1007.7,0.00046027,60]
[398961052,1766023867819,-917.68,0.00046027,120]
[398961053,1766023867828,-536.79,0.00046027,120]
[398961054,1766023867838,-1341.12,0.00046301,120]
[398961055,1766023867847,-500.0,0.00046301,120]
[398961056,1766023867856,-680.25,0.00046301,120]
[398961057,1766023867865,-174.6326367,0.00046301,120]
[398961058,1766023867874,-300.38316668,0.00046301,120]
[398961059,1766023867883,-868.74,0.00046301,3]
[398961060,1766023867892,-2080.09,0.00046301,120]
[398961061,1766023867901,-500.0,0.00046301,120]
[398961062,1766023867911,-835.86,0.00046301,120]
[398961063,1766023867920,-778.67,0.00046301,120]
[398961064,1766023867929,-3505.63,0.00046301,120]
[398961065,1766023867938,-2332.19,0.00046301,120]
[398961066,1766023867947,-500.0,0.00046301,120]
[398961067,1766023867956,-693.04,0.00046301,120]
[398961068,1766023867965,-1007.7,0.00046301,60]
[398961069,1766023867974,-917.68,0.00046301,120]
[398961070,1766023867983,-536.79,0.00046301,120]
[398961071,1766023867992,-1341.12,0.00046575,120]
[398961072,1766023868001,-500.0,0.00046575,120]
[398961073,1766023868010,-680.25,0.00046575,120]
[398961074,1766023868019,-868.74,0.00046575,3]
[398961075,1766023868029,-2080.09,0.00046575,120]
[398961076,1766023868039,-500.0,0.00046575,120]
[398961077,1766023868049,-835.86,0.00046575,120]
[398961078,1766023868059,-778.67,0.00046575,120]
[398961079,1766023868068,-3505.63,0.00046575,120]
[398961080,1766023868077,-2332.19,0.00046575,120]
[398961081,1766023868087,-500.0,0.00046575,120]
[398961082,1766023868096,-693.04,0.00046575,120]
[398961083,1766023868105,-1007.7,0.00046575,60]
[398961084,1766023868115,-917.68,0.00046575,120]
[398961085,1766023868124,-536.79,0.00046575,120]
[398961086,1766023868133,-1341.12,0.00046849,120]
[398961087,1766023868143,-500.0,0.00046849,120]
[398961088,1766023868151,-680.25,0.00046849,120]
[398961089,1766023868161,-868.74,0.00046849,3]
[398961090,1766023868171,-2080.09,0.00046849,120]
[398961091,1766023868180,-500.0,0.00046849,120]
[398961092,1766023868190,-835.86,0.00046849,120]
[398961093,1766023868199,-778.67,0.00046849,120]
[398961094,1766023868208,-3505.63,0.00046849,120]
[398961095,1766023868216,-2332.19,0.00046849,120]
[398961096,1766023868226,-500.0,0.00046849,120]
[398961097,1766023868235,-693.04,0.00046849,120]
[398961098,1766023868243,-1007.7,0.00046849,60]
[398961099,1766023868252,-917.68,0.00046849,120]
[398961100,1766023868261,-536.79,0.00046849,120]
[398961101,1766023868270,-1341.12,0.00047123,120]
[398961102,1766023868280,-500.0,0.00047123,120]
[398961103,1766023868290,-680.25,0.00047123,120]
[398961104,1766023868299,-868.74,0.00047123,3]
[398961105,1766023868308,-2080.09,0.00047123,120]
[398961106,1766023868317,-500.0,0.00047123,120]
[398961107,1766023868326,-835.86,0.00047123,120]
[398961108,1766023868335,-778.67,0.00047123,120]
[398961109,1766023868344,-3505.63,0.00047123,120]
[398961110,1766023868353,-2332.19,0.00047123,120]
[398961111,1766023868362,-240.72,0.00047123,120]
[398961112,1766023868371,-693.04,0.00047123,120]
[398961113,1766023868380,-1007.7,0.00047123,60]
[398961114,1766023868389,-917.68,0.00047123,120]
[398961115,1766023868398,-536.79,0.00047123,120]
[398961116,1766023868407,-1341.34,0.00047397,120]
[398961117,1766023868416,-400.76,0.00047397,120]
[398961118,1766023868425,-680.4467551,0.00047397,120]
[398961119,1766023868434,-868.83779358,0.00047397,3]
[398961120,1766023868443,-2080.13,0.00047397,120]
[398961121,1766023868452,-226.64,0.00047397,120]
[398961122,1766023868461,-835.88,0.00047397,120]
[398961123,1766023868470,-778.87,0.00047397,120]
[398961124,1766023868479,-3505.73,0.00047397,120]
[398961125,1766023868488,-2332.21,0.00047397,120]
[398961126,1766023868497,-693.14,0.00047397,120]
[398961127,1766023868506,-1007.79,0.00047397,60]
[398961128,1766023868515,-917.74027244,0.00047397,120]
[398961129,1766023868523,-536.87,0.00047397,120]
[398961130,1766023868533,-159.69901937,0.00048,120]
[398961131,1766023868542,-2000.0,0.00049,120]
[398961132,1766023868551,-1000.0,0.0005,120]
[398961133,1766023868560,-152.5857219,0.0005,120]
[398961134,1766023868569,-1000.0,0.00051,120]
[398961135,1766023868578,-1000.0,0.00052,120]
[398961136,1766023868587,-157.729808,0.00052226,2]
[398961137,1766023868595,-1000.0,0.00053,120]
[398961138,1766023868604,-255.6190723,0.00053966,2]
[398961139,1766023868613,-8309.0259313,0.00053966,2]
[398961140,1766023868622,-3979.5307966,0.00053966,2]
[398961141,1766023868631,-283.2458708,0.00053999,7]
[398961142,1766023868640,-1000.0,0.00054,120]
[398961143,1766023868651,-503.14688718,0.00054246,120]
[398961144,1766023868660,-500.39873167,0.0005442,118]
[398961145,1766023868669,-500.0,0.0005442,118]
[398961146,1766023868679,-283.2458708,0.00054497,7]
[398961147,1766023868687,-158.91,0.000545,30]
[398961148,1766023868698,-500.0,0.00054795,120]
[398961149,1766023868707,-500.0,0.00054795,120]
[398961150,1766023868716,-500.0,0.00054795,120]
[398961151,1766023868726,-500.0,0.00054795,120]
[398961152,1766023868735,-1190.0,0.00054795,120]
[398961153,1766023868743,-500.0,0.00054795,120]
[398961154,1766023868752,-500.0,0.00054795,120]
[398961155,1766023868761,-1190.0,0.00054795,120]
[398961156,1766023868770,-500.0,0.00054795,120]
[398961157,1766023868779,-1190.0,0.00054795,120]
[398961158,1766023868787,-500.0,0.00054795,120]
[398961159,1766023868796,-1190.0,0.00054795,120]
[398961160,1766023868804,-1190.0,0.00054795,120]
[398961161,1766023868813,-500.0,0.00054795,120]
[398961162,1766023868822,-500.0,0.00054795,120]
[398961163,1766023868831,-1190.0,0.00054795,120]
[398961164,1766023868840,-500.0,0.00054795,120]
[398961165,1766023868849,-1190.0,0.00054795,120]
[398961166,1766023868858,-500.0,0.00054795,120]
[398961167,1766023868866,-1190.0,0.00054795,120]
[398961168,1766023868875,-150.0,0.00054795,120]
[398961169,1766023868884,-500.0,0.00054795,120]
[398961170,1766023868894,-150.0,0.00054795,120]
[398961171,1766023868903,-1190.0,0.00054795,120]
[398961172,1766023868912,-500.0,0.00054795,120]
[398961173,1766023868921,-1190.0,0.00054795,120]
[398961174,1766023868930,-500.0,0.00054795,120]
[398961175,1766023868939,-1190.0,0.00054795,120]
[398961176,1766023868948,-150.0,0.00054795,120]
[398961177,1766023868957,-500.0,0.00054795,120]
[398961178,1766023868966,-1190.0,0.00054795,120]
[398961179,1766023868976,-150.0,0.00054795,120]
[398961180,1766023868984,-1190.0,0.00054795,120]
[398961181,1766023868994,-150.0,0.00054795,120]
[398961182,1766023869003,-1190.0,0.00054795,120]
[398961183,1766023869013,-500.0,0.00054795,120]
[398961184,1766023869022,-253.1741855,0.00054795,120]
[398961185,1766023869032,-1190.0,0.00054795,120]
[398961186,1766023869041,-1190.0,0.00054795,120]
[398961187,1766023869050,-500.0,0.00054795,120]
[398961188,1766023869060,-150.0,0.00054795,120]
[398961189,1766023869069,-1190.0,0.00054795,120]
[398961190,1766023869077,-150.0,0.00054795,120]
[398961191,1766023869087,-294.17315758,0.00054795,120]
[398961192,1766023869095,-500.0,0.00054795,120]
[398961193,1766023869105,-503.81830632,0.00054795,120]
[398961194,1766023869114,-1190.0,0.00054795,120]
[398961195,1766023869123,-404.94472778,0.00054795,120]
[398961196,1766023869132,-1190.0,0.00054795,120]
[398961197,1766023869141,-1190.0,0.00054795,120]
[398961198,1766023869150,-1190.0,0.00054795,120]
[398961199,1766023869159,-150.0,0.00054795,120]
[398961200,1766023869168,-150.0,0.00054795,120]
[398961201,1766023869177,-152.25241771,0.00054795,120]
[398961202,1766023869187,-1190.0,0.00054795,120]
[398961203,1766023869196,-1190.0,0.00054795,120]
[398961204,1766023869205,-1209.59109971,0.00054795,120]
[398961205,1766023869213,-155.83136247,0.00054795,120]
[398961206,1766023869222,-152.06938484,0.00054795,120]
[398961207,1766023869231,-150.0,0.00054795,120]
[398961208,1766023869240,-500.0,0.00054795,120]
[398961209,1766023869249,-150.0,0.00054795,120]
[398961210,1766023869258,-500.0,0.00054795,120]
[398961211,1766023869268,-275.0879048,0.00054795,120]
[398961212,1766023869277,-500.0,0.00054795,120]
[398961213,1766023869288,-500.0,0.00054795,120]
[398961214,1766023869379,-500.0,0.00054795,120]
[398961215,1766023869388,-500.0,0.00054795,120]
[398961216,1766023869397,-841.0,0.00054795,120]
[398961217,1766023869406,-302.14564376,0.00054795,120]
[398961218,1766023869416,-500.0,0.00054795,120]
[398961219,1766023869424,-500.0,0.00054795,120]
[398961220,1766023869433,-841.0,0.00054795,120]
[398961221,1766023869443,-150.0,0.00054795,2]
[398961222,1766023869452,-500.0,0.00054795,120]
[398961223,1766023869462,-841.0,0.00054795,120]
[398961224,1766023869470,-150.11352695,0.00054795,120]
[398961225,1766023869479,-500.0,0.00054795,120]
[398961226,1766023869488,-500.0,0.00054795,120]
[398961227,1766023869497,-841.0,0.00054795,120]
[398961228,1766023869506,-500.0,0.00054795,120]
[398961229,1766023869514,-500.0,0.00054795,120]
[398961230,1766023869523,-500.0,0.00054795,120]
[398961231,1766023869532,-841.0,0.00054795,120]
[398961232,1766023869541,-500.0,0.00054795,120]
[398961233,1766023869550,-500.0,0.00054795,120]
[398961234,1766023869559,-841.0,0.00054795,120]
[398961235,1766023869567,-500.0,0.00054795,120]
[398961236,1766023869576,-150.0,0.00054795,120]
[398961237,1766023869584,-500.0,0.00054795,120]
[398961238,1766023869593,-841.0,0.00054795,120]
[398961239,1766023869602,-500.0,0.00054795,120]
[398961240,1766023869611,-500.0,0.00054795,120]
[398961241,1766023869620,-500.0,0.00054795,120]
[398961242,1766023869629,-150.0,0.00054795,120]
[398961243,1766023869638,-841.0,0.00054795,120]
[398961244,1766023869650,-500.0,0.00054795,120]
[398961245,1766023869660,-500.0,0.00054795,120]
[398961246,1766023869669,-150.0,0.00054795,120]
[398961247,1766023869678,-500.0,0.00054795,120]
[398961248,1766023869688,-841.0,0.00054795,120]
[398961249,1766023869698,-500.0,0.00054795,120]
[398961250,1766023869707,-500.0,0.00054795,120]
[398961251,1766023869717,-841.0,0.00054795,120]
[398961252,1766023869728,-244.08486033,0.00054795,120]
[398961253,1766023869738,-500.0,0.00054795,120]
[398961254,1766023869747,-500.0,0.00054795,120]
[398961255,1766023869757,-500.0,0.00054795,120]
[398961256,1766023869766,-198.81865473,0.00054795,120]
[398961257,1766023869775,-841.0,0.00054795,120]
[398961258,1766023869788,-500.0,0.00054795,120]
[398961259,1766023869797,-500.0,0.00054795,120]
[398961260,1766023869806,-500.0,0.00054795,120]
[398961261,1766023869815,-841.0,0.00054795,120]
[398961262,1766023869824,-500.0,0.00054795,120]
[398961263,1766023869834,-500.0,0.00054795,120]
[398961264,1766023869843,-500.0,0.00054795,120]
[398961265,1766023869852,-841.0,0.00054795,120]
[398961266,1766023869861,-500.0,0.00054795,120]
[398961267,1766023869870,-500.0,0.00054795,120]
[398961268,1766023869879,-500.0,0.00054795,120]
[398961269,1766023869888,-500.0,0.00054795,120]
[398961270,1766023869897,-841.0,0.00054795,120]
[398961271,1766023869906,-500.0,0.00054795,120]
[398961272,1766023869916,-500.0,0.00054795,120]
[398961273,1766023869926,-150.0,0.00054795,120]
[398961274,1766023869935,-841.0,0.00054795,120]
[398961275,1766023869943,-11.26559041,0.00054795,120]
[398961276,1766023870070,-488.73440959,0.00054795,120]
[398961277,1766023870080,-500.0,0.00054795,120]
[398961278,1766023870089,-150.0,0.00054795,120]
[398961279,1766023870099,-150.0,0.00054795,120]
[398961280,1766023870108,-500.0,0.00054795,120]
[398961281,1766023870117,-841.0,0.00054795,120]
[398961282,1766023870126,-500.0,0.00054795,120]
[398961283,1766023870136,-150.0,0.00054795,120]
[398961284,1766023870145,-500.0,0.00054795,120]
[398961285,1766023870155,-150.0,0.00054795,120]
[398961286,1766023870164,-500.0,0.00054795,120]
[398961287,1766023870174,-182.49644474,0.00054795,120]
[398961288,1766023870183,-204.44970543,0.00054795,120]
[398961289,1766023870192,-150.0,0.00054795,120]
[398961290,1766023870201,-841.0,0.00054795,120]
[398961291,1766023870211,-150.0,0.00054795,120]
[398961292,1766023870220,-275.84547889,0.00054795,120]
[398961293,1766023870229,-500.0,0.00054795,120]
[398961294,1766023870239,-500.0,0.00054795,120]
[398961295,1766023870248,-500.0,0.00054795,120]
[398961296,1766023870257,-841.0,0.00054795,120]
[398961297,1766023870268,-452.56070002,0.00054795,120]
[398961298,1766023870277,-381.51025062,0.00054795,120]
[398961299,1766023870286,-841.0,0.00054795,120]
[398961300,1766023870295,-841.0,0.00054795,120]
[398961301,1766023870304,-841.0,0.00054795,120]
[398961302,1766023870313,-841.0,0.00054795,120]
[398961303,1766023870322,-841.0,0.00054795,120]
[398961304,1766023870331,-856.49964562,0.00054795,120]
[398961305,1766023870340,-283.2458708,0.00055,120]
[398961306,1766023870348,-1000.0,0.00055,120]
[398961307,1766023870357,-1000.0,0.00056,120]
[398961308,1766023870366,-2000.0,0.00056,120]
[398961309,1766023870375,-1608.68,0.00056,14]
[398961310,1766023870384,-158.0,0.00056,120]
[398961311,1766023870393,-1000.0,0.00057,120]
[398961312,1766023870402,-2000.0,0.000572,120]
[398961313,1766023870411,-2000.0,0.000572,120]
[398961314,1766023870420,-2000.0,0.000572,120]
[398961315,1766023870429,-2000.0,0.000572,120]
[398961316,1766023870439,-1000.0,0.00058,120]
[398961317,1766023870448,-202.4924387,0.00058,120]
[398961318,1766023870457,-1000.0,0.00058,120]
[398961319,1766023870465,-210.43000258,0.00058,120]
[398961320,1766023870474,-2000.0,0.000582,120]
[398961321,1766023870483,-2000.0,0.000582,120]
[398961322,1766023870492,-2000.0,0.000582,120]
[398961323,1766023870502,-2000.0,0.000582,120]
[398961324,1766023870511,-1485.65595072,0.000585,120]
[398961325,1766023870520,-19968.0,0.000588,120]
[398961326,1766023870530,-4979.0,0.00059,120]
[398961327,1766023870539,-1000.0,0.00059,120]
[398961328,1766023870548,-1226.87,0.00059,2]
[398961329,1766023870557,-2000.0,0.000592,120]
[398961330,1766023870566,-2000.0,0.000592,120]
[398961331,1766023870575,-2000.0,0.000592,120]
[398961332,1766023870584,-2000.0,0.000592,120]
[398961333,1766023870593,-2000.0,0.000592,120]
[398961334,1766023870602,-414.0,0.00059898,120]
[398961335,1766023870611,-429.318,0.00059898,120]
[398961336,1766023870620,-200.0,0.00059898,120]
[398961337,1766023870629,-2000.0,0.00059898,120]
[398961338,1766023870639,-445.202766,0.00059898,120]
[398961339,1766023870648,-2074.0,0.00059898,120]
[398961340,1766023870660,-200.0,0.00059898,120]
[398961341,1766023870669,-461.67526834,0.00059898,120]
[398961342,1766023870678,-2150.738,0.00059898,120]
[398961343,1766023870687,-478.75725327,0.00059898,120]
[398961344,1766023870697,-200.0,0.00059898,120]
[398961345,1766023870706,-2230.315306,0.00059898,120]
[398961346,1766023870715,-496.47127164,0.00059898,120]
[398961347,1766023870725,-200.0,0.00059898,120]
[398961348,1766023870734,-2312.83697232,0.00059898,120]
[398961349,1766023870743,-514.84070869,0.00059898,120]
[398961350,1766023870751,-151.0,0.00059898,120]
[398961351,1766023870760,-2398.4119403,0.00059898,120]
[398961352,1766023870769,-200.0,0.00059898,120]
[398961353,1766023870777,-151.0,0.00059898,120]
[398961354,1766023870787,-533.88981491,0.00059898,120]
[398961355,1766023870796,-2487.15318209,0.00059898,120]
[398961356,1766023870805,-151.0,0.00059898,120]
[398961357,1766023870814,-200.0,0.00059898,120]
[398961358,1766023870823,-566.65511079,0.00059898,120]
[398961359,1766023870832,-2579.17784983,0.00059898,120]
[398961360,1766023870841,-151.0,0.00059898,120]
[398961361,1766023870850,-200.0,0.00059898,120]
[398961362,1766023870859,-2674.60743027,0.00059898,120]
[398961363,1766023870869,-151.0,0.00059898,120]
[398961364,1766023870878,-200.0,0.00059898,120]
[398961365,1766023870887,-151.0,0.00059898,120]
[398961366,1766023870896,-200.0,0.00059898,120]
[398961367,1766023870905,-151.0,0.00059898,120]
[398961368,1766023870915,-200.0,0.00059898,120]
[398961369,1766023870924,-151.0,0.00059898,120]
[398961370,1766023870934,-200.0,0.00059898,120]
[398961371,1766023870944,-151.0,0.00059898,120]
[398961372,1766023870954,-200.0,0.00059898,120]
[398961373,1766023870963,-151.0,0.00059898,120]
[398961374,1766023870973,-200.0,0.00059898,120]
[398961375,1766023870983,-151.0,0.00059898,120]
[398961376,1766023870992,-200.0,0.00059898,120]
[398961377,1766023871001,-151.0,0.00059898,120]
[398961378,1766023871010,-200.0,0.00059898,120]
[398961379,1766023871019,-151.0,0.00059898,120]
[398961380,1766023871028,-200.0,0.00059898,120]
[398961381,1766023871040,-151.0,0.00059898,120]
[398961382,1766023871049,-200.0,0.00059898,120]
[398961383,1766023871059,-151.0,0.00059898,120]
[398961384,1766023871068,-151.0,0.00059898,120]
[398961385,1766023871076,-200.0,0.00059898,120]
[398961386,1766023871086,-151.0,0.00059898,120]
[398961387,1766023871094,-200.0,0.00059898,120]
[398961388,1766023871103,-151.0,0.00059898,120]
[398961389,1766023871112,-200.0,0.00059898,120]
[398961390,1766023871121,-151.0,0.00059898,120]
[398961391,1766023871130,-151.21481001,0.00059898,120]
[398961392,1766023871139,-153.66728904,0.00059898,120]
[398961393,1766023871148,-1010.86991157,0.00059898,120]
[398961394,1766023871157,-253.75306097,0.00059898,120]
[398961395,1766023871166,-157.729808,0.00059932,2]
[398961396,1766023871175,-502015.33581163,0.0006,10]
[398961397,1766023871187,-100003.9537234,0.0006,10]
[398961404,1766024537529,297.0,0.000148,120]
[398961405,1766024598323,150.0,6.802e-05,2]
[398961407,1766024885256,-208.96458864,0.00013699,2]
[398961408,1766024893988,-1791.03541136,0.000375,120]
[398961445,1766025031575,-500.0,0.00013699,2]
[398961447,1766025031584,-500.0,0.00013699,2]
[398961448,1766025031593,-6.53,0.00013699,2]
[398961450,1766025031605,-404.05,0.00013699,2]
[398961455,1766025037650,-204.42,0.00013699,2]
[398961456,1766025037661,-1000.0,0.00014247,2]
[398961457,1766025037674,-748.5200712,0.00014247,2]
[398961458,1766025037687,-503.25526163,0.00014795,2]
[398961459,1766025037695,-300.0,0.00019999,2]
[398961460,1766025037706,-167.67651873,0.0002,2]
[398961461,1766025037716,-338.66598026,0.000215,7]
[398961462,1766025037740,-188.64425682,0.000295,120]
[398961463,1766025037750,-388.41217149,0.0003,30]
[398961464,1766025037760,-162.90244616,0.000332,117]
[398961466,1766025037770,-5797.3965511,0.0003863,36]
[398961468,1766025037780,-530.5,0.00038694,30]
[398961470,1766025037790,-678.5,0.00038694,30]
[398961472,1766025037799,-500.0,0.00039046,7]
[398961474,1766025037809,-485.47757868,0.00039046,15]
[398961476,1766025037819,-184.52136084,0.00039046,15]
[398961478,1766025037828,-500.0,0.00039046,15]
[398961480,1766025037838,-500.0,0.00039046,15]
[398961481,1766025037847,-550.36816216,0.00039046,7]
[398961482,1766025037857,-500.0,0.00039046,15]
[398961483,1766025037867,-449.09648145,0.00039046,15]
[398961484,1766025037876,-193.91668418,0.00039046,15]
[398961485,1766025037885,-500.0,0.00039046,15]
[398961486,1766025037895,-500.0,0.00039046,15]
[398961487,1766025037905,-500.0,0.00039046,15]
[398961488,1766025037914,-500.0,0.00039046,15]
[398961489,1766025037924,-500.0,0.00039046,15]
[398961490,1766025037935,-500.0,0.00039046,15]
[398961491,1766025037945,-485.72815983,0.00039046,15]
[398961492,1766025037954,-500.0,0.00039047,2]
[398961493,1766025037963,-20935.85627103,0.00039047,2]
[398961494,1766025037975,-16512.79895255,0.00039047,2]
[398961495,1766025038152,-13403.76175733,0.00039047,2]
[398961611,1766025042744,-2061.63837912,0.00039047,2]
[398961615,1766025045828,-39204.99618421,0.00039047,2]
[398961616,1766025045838,-300.0,0.00039047,2]
[398961617,1766025045847,-22871.24021802,0.00039047,2]
[398961618,1766025045856,-3919.47364009,0.00039047,2]
[398961619,1766025045866,-817.27213086,0.00039047,2]
[398961620,1766025045876,-346.71401652,0.00039047,2]
[398961621,1766025045886,-260.58667915,0.00039047,2]
[398961622,1766025045896,-175.39784977,0.00039047,30]
[398961623,1766025045906,-329.9781568,0.00039047,2]
[398961624,1766025045917,-11324.79669689,0.00039047,2]
[398961625,1766025045926,-294.49762572,0.00039047,2]
[398961626,1766025045935,-52194.60600396,0.00039047,2]
[398961627,1766025045943,-151.47678063,0.00039047,120]
[398961628,1766025045953,-643.04037725,0.00039047,2]
[398961629,1766025045961,-1374.23391125,0.00039047,2]
[398961630,1766025045970,-158.04283598,0.00039047,2]
[398961631,1766025045978,-2941.82205583,0.00039047,2]
[398961632,1766025045987,-708.94386085,0.00039047,2]
[398961633,1766025045996,-21770.74208661,0.00039047,2]
[398961634,1766025046008,-157.31239166,0.00039047,30]
[398961635,1766025046017,-6356.85712122,0.00039047,2]
[398961636,1766025046028,-159.05122736,0.00039047,2]
[398961637,1766025046036,-2355.33971374,0.00039047,2]
[398961638,1766025046047,-524.71811357,0.00039047,31]
[398961639,1766025046057,-1732.85036093,0.00039047,2]
[398961640,1766025046068,-7551.28631986,0.00039047,2]
[398961641,1766025046080,-2095.28496735,0.00039047,2]
[398961642,1766025046090,-57203.17379815,0.00039047,2]
[398961643,1766025046099,-512.11215651,0.00039047,2]
[398961644,1766025046108,-185.51665762,0.00039047,2]
[398961645,1766025046116,-472.02625697,0.00039047,2]
[398961646,1766025046125,-4204.11724988,0.00039047,30]
[398961647,1766025046134,-30724.20875221,0.00039047,2]
[398961648,1766025046143,-190.82275766,0.00039047,2]
[398961649,1766025046152,-1205.58975826,0.00039047,2]
[398961650,1766025046161,-1369.24185812,0.00039047,2]
[398961652,1766025167169,-500.0,0.00013699,2]
[398961653,1766025167191,-226.04392202,0.00014247,2]
[398961654,1766025198129,-151.10972727,0.00027397,5]
[398961655,1766025212183,-153.64980403,0.00027397,5]
[398961656,1766025317702,-760.23416354,0.00025,5]
[398961659,1766025917353,-153.67778896,0.00013273,2]
[398961660,1766025963293,-146.35078322,0.00013273,2]
[398961661,1766025963314,-4.75894405,0.00018965,2]
[398961663,1766025996119,-145.24105595,0.00018965,2]
[398961664,1766025996139,-147.93484203,0.00020965,2]
[398961685,1766026231769,-534.54761844,0.00020965,2]
[398961706,1766026237963,-204.45238156,0.00020965,2]
[398961707,1766026237973,-29.06515797,0.00020965,2]
[398961708,1766026237983,-204.0,0.00022965,2]
[398961709,1766026237992,-150.0,0.00024658,2]
[398961710,1766026238001,-2691.29866099,0.00025,5]
[398961711,1766026238010,-250.0,0.00025205,2]
[398961712,1766026238019,-252.07625707,0.00025753,2]
[398961713,1766026238028,-300.0,0.00027396,2]
[398961714,1766026238037,-278.69747984,0.00027397,5]
[398961715,1766026238048,-222.30156191,0.00027397,5]
[398961716,1766026238057,-151.10972727,0.00027397,5]
[398961717,1766026238066,-153.64980403,0.00027397,5]
[398961718,1766026238075,-300.0,0.00028,120]
[398961719,1766026238084,-155.86944008,0.00029685,5]
[398961720,1766026238092,-300.0,0.0003,120]
[398961721,1766026238102,-300.0,0.000314,120]
[398961722,1766026238112,-300.0,0.00032,120]
[398961723,1766026238121,-300.0,0.00033,120]
[398961724,1766026238131,-1000.0,0.0003398,30]
[398961725,1766026238139,-236.25569873,0.00034,120]
[398961726,1766026238151,-63.74430127,0.00034,120]
[398961727,1766026238160,-401.0,0.00035,120]
[398961728,1766026238169,-300.0,0.00036,120]
[398961729,1766026238178,-300.0,0.00037,120]
[398961730,1766026238187,-300.0,0.00038,120]
[398961731,1766026238196,-300.0,0.000384,120]
[398961732,1766026238205,-2429.22425889,0.00038626,2]
[398961733,1766026238214,-161.443,0.00038629,52]
[398961734,1766026238222,-827.76,0.00038632,120]